bitfinex-derivatives/quotes_ETHF0:USTF0_20210407
["timestamp","ask_amount","ask_price","bid_price","bid_amount"]
[1617780821084,5.47795,2080.7,2080.6,2.90695]
[1617780821483,5.47795,2080.7,2080.6,8.70695]
[1617780822285,5.47795,2080.7,2080.6,71.15965]
[1617780823086,5.47795,2080.7,2080.6,8.70695]
[1617780823685,69.91405,2080.7,2080.6,5.8]
[1617780824085,69.91405,2080.7,2080.1,78.6565]
[1617780824283,69.91405,2080.7,2080.6,5.82]
[1617780824684,69.91405,2080.7,2080.1,78.6565]
[1617780824884,67.91498696,2080.7,2080.5,2.90695]
[1617780825083,67.0071,2080.7,2080.6,5.84]
[1617780825285,67.0071,2080.7,2080.5,2.90695]
[1617780825685,67.0071,2080.7,2080.6,6.05]
[1617780826984,69.91405,2080.7,2080.6,6.05]
[1617780830793,5.47795,2080.7,2080.6,6.05]
[1617780832996,6.15884696,2080.7,2080.6,6.05]
[1617780833795,3.25189696,2080.7,2080.6,6.05]
[1617780834395,2.571,2080.7,2080.6,6.05]
[1617780834795,3.25203782,2080.7,2080.6,6.05]
[1617780835399,2.571,2080.7,2080.6,6.05]
[1617780838502,3.25189545,2080.7,2080.6,6.05]
[1617780838902,6.15884545,2080.7,2080.6,6.05]
[1617780843510,58.1179,2080.6,2079.7,67.5189]
[1617780844110,0.02837617,2079.8,2079.7,67.5189]
[1617780844310,3.04707617,2079.8,2079.1,42.9587]
[1617780844510,3.0187,2079.8,2079.7,5.91]
[1617780844910,3.0187,2079.8,2079.2,5.88]
[1617780845110,3.0187,2079.8,2079.1,30.0]
[1617780845111,5.92565,2079.8,2079.7,2.90695]
[1617780845312,5.92565,2079.8,2079.7,8.81695]
[1617780845512,5.92565,2079.8,2079.7,2.90695]
[1617780845911,5.92565,2079.8,2079.7,8.79695]
[1617780845912,3.0470659,2079.8,2079.7,8.79695]
[1617780846111,0.0283659,2079.8,2079.7,8.79695]
[1617780851618,71.1409,2079.9,2079.7,8.79695]
[1617780852019,0.02836634,2079.8,2079.7,8.79695]
[1617780853323,71.1409,2079.9,2079.7,8.79695]
[1617780855725,2.388,2080.0,2079.7,8.79695]
[1617780855925,2.388,2080.0,2079.7,5.89]
[1617780856125,2.388,2080.0,2078.2,79.1146]
[1617780856329,0.02835537,2079.6,2078.2,79.1146]
[1617780856527,0.02835537,2079.6,2078.2,77.1146]
[1617780856728,0.02835773,2079.4,2078.2,77.1146]
[1617780856927,2.32185773,2079.4,2079.0,5.89]
[1617780857127,2.32185773,2079.4,2079.1,2.90695]
[1617780857328,0.02835662,2079.2,2079.1,2.90695]
[1617780857727,2.2935,2079.4,2079.1,2.90695]
[1617780858527,2.74724549,2079.4,2079.1,2.90695]
[1617780858729,2.74724549,2079.4,2077.8,30.0]
[1617780858929,2.74724549,2079.4,2077.7,30.0]
[1617780859127,2.74724549,2079.4,2077.6,12.933]
[1617780859128,0.02835995,2078.9,2078.6,2.90695]
[1617780859327,0.02835995,2078.9,2077.6,12.933]
[1617780859328,76.5154,2078.0,2077.8,5.81]
[1617780859527,78.8595,2078.0,2077.7,5.95]
[1617780859928,78.8595,2078.0,2077.9,5.94]
[1617780860327,78.8595,2078.0,2077.7,5.96]
[1617780860526,78.8595,2078.0,2077.5,6.01]
[1617780860728,78.8595,2078.0,2077.9,5.84]
[1617780860927,78.8595,2078.0,2077.8,5.62]
[1617780861130,78.8595,2078.0,2077.9,2.90695]
[1617780861328,76.5154,2078.0,2077.9,8.83695]
[1617780861531,76.5154,2078.0,2077.9,2.90695]
[1617780861928,76.5154,2078.0,2077.9,8.94695]
[1617780867832,2.90695,2078.2,2077.9,8.94695]
[1617780868033,2.90695,2078.2,2078.0,64.7106]
[1617780868435,2.90695,2078.2,2078.1,5.97]
[1617780869736,0.02832058,2078.9,2078.1,38.9931]
[1617780870136,0.0283186,2079.0,2078.1,38.9931]
[1617780870336,2.571,2079.7,2078.3,61.547]
[1617780870337,0.02831763,2079.1,2078.3,61.547]
[1617780870737,0.02831763,2079.1,2078.4,5.89]
[1617780871438,0.02831763,2079.1,2079.0,2.90695]
[1617780871636,1.00301763,2079.1,2079.0,9.77605]
[1617780871838,0.02831763,2079.1,2079.0,8.82695]
[1617780872237,0.45307219,2079.4,2079.0,8.82695]
[1617780872437,0.45307219,2079.4,2079.0,6.75745]
[1617780872638,74.06596915,2079.5,2079.0,6.75745]
[1617780873037,0.02831701,2079.1,2079.0,6.75745]
[1617780873438,2.93526701,2079.1,2079.0,6.75745]
[1617780874038,2.93526701,2079.1,2079.0,80.97855]
[1617780874638,2.90695,2079.1,2079.0,80.97855]
[1617780875240,2.90695,2079.1,2079.0,6.75745]
[1617780877239,0.02831459,2079.3,2079.0,6.75745]
[1617780877439,0.02831459,2079.3,2079.1,30.0]
[1617780877641,2.93526107,2079.5,2079.1,30.0]
[1617780877839,2.93526107,2079.5,2079.3,58.3725]
[1617780878040,2.90695,2079.5,2079.3,58.3725]
[1617780878239,2.90695,2079.5,2079.4,6.04]
[1617780879440,2.90695,2079.5,2079.4,8.94695]
[1617780882140,82.64955,2079.5,2079.4,8.94695]
[1617780885245,82.67786271,2079.5,2079.4,8.94695]
[1617780886647,82.67786271,2079.5,2079.4,6.04]
[1617780886849,82.64955,2079.5,2079.4,6.04]
[1617780887847,82.64955,2079.5,2079.0,71.77085]
[1617780888048,2.90695,2079.5,2079.0,2.90695]
[1617780888248,0.02831741,2079.2,2079.0,2.90695]
[1617780888447,2.79181741,2079.2,2079.0,2.90695]
[1617780888747,2.79181741,2079.2,2079.1,5.82]
[1617780888748,2.7635,2079.2,2079.1,5.82]
[1617780889149,2.79181807,2079.2,2079.1,5.82]
[1617780889552,5.69876807,2079.2,2079.1,5.82]
[1617780890150,5.67045,2079.2,2079.1,5.82]
[1617780890952,60.96076461,2079.2,2079.1,5.82]
[1617780891552,5.69876461,2079.2,2079.1,5.82]
[1617780891753,2.90695,2079.2,2079.1,5.82]
[1617780894562,0.02831067,2079.5,2079.1,5.82]
[1617780895362,2.59930676,2079.7,2079.2,55.7315]
[1617780895561,2.59930676,2079.7,2079.3,5.98]
[1617780895761,5.50625676,2079.7,2079.6,2.90695]
[1617780895962,5.50625676,2079.7,2079.6,8.78695]
[1617780896161,5.50625676,2079.7,2079.6,64.50505]
[1617780896963,5.47795,2079.7,2079.6,64.50505]
[1617780899964,5.50625546,2079.7,2079.6,64.50505]
[1617780900365,5.47795,2079.7,2079.6,64.50505]
[1617780901566,5.50627162,2079.7,2079.6,64.50505]
[1617780901766,5.50627162,2079.7,2079.6,61.5981]
[1617780902268,5.47795,2079.7,2079.6,61.5981]
[1617780903769,5.50626341,2079.7,2079.6,64.50505]
[1617780904168,5.47795,2079.7,2079.6,64.50505]
[1617780904769,5.50626332,2079.7,2079.6,64.50505]
[1617780904968,6.46826332,2079.7,2079.6,64.50505]
[1617780905168,5.50626332,2079.7,2079.6,64.50505]
[1617780907170,5.47795,2079.7,2079.6,64.50505]
[1617780914278,2.571,2079.7,2079.6,64.50505]
[1617780914880,2.571,2079.7,2079.6,94.50505]
[1617780915381,0.02831863,2080.0,2079.6,94.50505]
[1617780915783,0.02831863,2080.0,2079.9,2.90695]
[1617780916181,0.02831863,2080.0,2079.9,8.73695]
[1617780920987,1.00411863,2080.0,2079.9,8.73695]
[1617780921187,0.02831863,2080.0,2079.9,8.73695]
[1617780921789,2.93526863,2080.0,2079.9,73.67595]
[1617780923388,2.93526863,2080.0,2079.9,8.73695]
[1617780924991,2.93526863,2080.0,2079.9,63.41305]
[1617780925795,2.90695,2080.0,2079.9,63.41305]
[1617780928398,2.96365728,2080.0,2079.9,63.41305]
[1617780929801,5.19335728,2080.0,2079.9,63.41305]
[1617780929999,5.13665,2080.0,2079.9,63.41305]
[1617780932003,2.90695,2080.0,2079.9,63.41305]
[1617780936009,2.90695,2080.0,2079.9,8.73695]
[1617780939213,3.36063088,2080.0,2079.9,8.73695]
[1617780939412,2.90695,2080.0,2079.9,8.73695]
[1617780939612,2.90695,2080.0,2079.9,2.90695]
[1617780941718,60.55255,2080.0,2079.9,2.90695]
[1617780943916,61.00625389,2080.0,2079.9,2.90695]
[1617780945817,3.36065389,2080.0,2079.9,2.90695]
[1617780946216,3.36065389,2080.0,2079.9,8.69695]
[1617780946416,2.90695,2080.0,2079.9,8.69695]
[1617780947118,3.58773138,2080.0,2079.9,8.69695]
[1617780947319,3.58773138,2080.0,2079.0,74.3547]
[1617780947520,2.90695,2080.0,2079.0,74.3547]
[1617780947921,2.90695,2079.3,2079.0,74.3547]
[1617780948120,2.90695,2079.3,2079.1,5.92]
[1617780949721,2.90695,2079.3,2079.1,74.0513]
[1617780949920,2.90695,2079.3,2079.2,8.82695]
[1617780950921,2.90695,2079.3,2079.2,5.92]
[1617780951124,2.93530924,2079.3,2079.2,5.92]
[1617780951321,2.93530924,2079.3,2078.7,5.99]
[1617780951521,5.02970924,2079.3,2078.6,6.03]
[1617780951722,5.00135,2079.3,2079.2,5.81]
[1617780951922,5.00135,2079.3,2078.8,8.73695]
[1617780952124,5.00135,2079.3,2078.8,2.90695]
[1617780952624,0.02836239,2079.0,2078.9,5.77]
[1617780954024,2.93531239,2079.0,2078.9,5.77]
[1617780956827,2.90695,2079.0,2078.9,5.77]
[1617780957330,2.96367653,2079.0,2078.9,5.77]
[1617780958129,2.90695,2079.0,2078.9,5.77]
[1617780959128,2.90695,2079.0,2077.6,66.1468]
[1617780959328,68.649,2078.8,2077.6,66.1468]
[1617780959528,71.5356,2078.8,2077.6,66.1468]
[1617780959730,0.02839679,2078.6,2077.6,66.1468]
[1617780959930,0.02839679,2078.6,2077.9,5.82]
[1617780960130,0.02839742,2078.4,2078.2,2.90695]
[1617780960530,0.02839742,2078.4,2078.3,5.94]
[1617780962133,2.93534742,2078.4,2078.3,5.94]
[1617780963531,2.90695,2078.4,2078.3,5.94]
[1617780964632,2.93534815,2078.4,2078.3,5.94]
[1617780965235,2.96374964,2078.4,2078.3,5.94]
[1617780966036,2.90695,2078.4,2078.3,5.94]
[1617780967236,5.26625,2078.4,2078.3,5.94]
[1617780969336,5.29460989,2078.4,2078.3,5.94]
[1617780969838,5.26625,2078.4,2078.3,5.94]
[1617780979546,6.22095,2078.4,2078.3,5.94]
[1617780979746,5.26625,2078.4,2078.3,5.94]
[1617780984153,2.90695,2078.4,2078.3,5.94]
[1617780984952,2.90695,2078.4,2078.3,65.329]
[1617780990659,3.85985,2078.4,2078.3,66.2955]
[1617780990858,2.90695,2078.4,2078.3,65.329]
[1617780993764,2.2615,2078.7,2078.3,65.329]
[1617780993964,0.02830789,2078.8,2078.3,65.329]
[1617780994565,0.02830789,2078.8,2078.4,2.90695]
[1617780994965,0.02830789,2078.8,2078.5,5.93]
[1617780996568,2.90695,2078.6,2078.5,5.93]
[1617781001379,0.02829448,2078.8,2078.5,5.93]
[1617781001878,0.02829448,2078.8,2078.4,6.06]
[1617781002777,2.90695,2078.5,2078.4,8.96695]
[1617781017893,2.90695,2078.5,2078.4,83.12735]
[1617781021095,2.93527664,2078.8,2078.4,8.96695]
[1617781021898,2.93527664,2078.8,2078.5,76.9603]
[1617781022300,2.93527664,2078.8,2078.6,6.06]
[1617781023100,2.93527664,2078.8,2078.7,2.90695]
[1617781023502,2.93527664,2078.8,2078.7,8.79695]
[1617781024303,2.90695,2078.8,2078.7,8.79695]
[1617781024705,2.96362842,2078.8,2078.7,8.79695]
[1617781025306,2.90695,2078.8,2078.7,8.79695]
[1617781025804,3.36115897,2078.8,2078.7,8.79695]
[1617781026906,3.36115897,2078.8,2078.7,2.90695]
[1617781027107,3.36115897,2078.8,2078.2,2.90695]
[1617781027308,5.86035,2078.8,2077.6,13.1924]
[1617781027910,0.05678284,2078.3,2077.7,5.77]
[1617781028106,2.33488284,2078.3,2077.7,5.77]
[1617781028307,0.02839206,2078.1,2077.7,5.77]
[1617781028508,0.02839358,2078.0,2077.7,5.77]
[1617781028908,0.02839342,2077.9,2077.7,5.77]
[1617781029107,0.02839342,2077.9,2077.8,2.90695]
[1617781029308,0.02838536,2078.0,2077.8,2.90695]
[1617781029507,0.02838536,2078.0,2077.9,6.06]
[1617781029808,0.05677154,2078.0,2077.8,8.91695]
[1617781030008,0.05677154,2078.0,2077.8,2.90695]
[1617781030209,0.05677154,2078.0,2077.9,6.03]
[1617781030812,0.45420238,2078.2,2077.8,2.90695]
[1617781031012,0.45420238,2078.2,2076.6,13.8344]
[1617781031212,2.45420238,2078.2,2077.1,2.90695]
[1617781031415,0.4542137,2078.1,2077.1,2.90695]
[1617781031612,0.4542137,2078.1,2077.2,5.86]
[1617781032015,0.0283904,2077.5,2077.2,5.86]
[1617781032214,2.2769904,2077.5,2077.2,5.86]
[1617781032415,0.0283906,2077.4,2076.7,5.97]
[1617781032614,0.0283906,2077.4,2077.3,5.87]
[1617781033016,0.0283906,2077.4,2076.7,6.02]
[1617781033215,2.90695,2076.8,2076.7,2.90695]
[1617781033414,5.21935,2076.8,2076.7,2.90695]
[1617781033616,5.21935,2076.8,2076.7,8.81695]
[1617781035016,2.90695,2076.8,2076.7,8.81695]
[1617781036315,2.90695,2076.8,2076.7,6.8744]
[1617781036517,2.9354069,2076.8,2076.7,5.91]
[1617781036919,2.9354069,2076.8,2076.0,6.05]
[1617781037122,2.9354069,2076.8,2076.7,2.90695]
[1617781037319,2.9354069,2076.8,2076.7,8.85695]
[1617781037521,2.9354069,2076.8,2076.7,2.90695]
[1617781037919,61.8967069,2076.8,2076.7,8.87695]
[1617781038721,61.8967069,2076.8,2076.7,5.97]
[1617781039121,61.92516322,2076.8,2076.7,5.97]
[1617781040625,61.86825,2076.8,2076.7,5.97]
[1617781042325,2.90695,2076.8,2076.7,5.97]
[1617781042723,2.90695,2076.8,2076.1,6.02]
[1617781042923,66.069,2076.2,2076.1,6.02]
[1617781043123,66.069,2076.2,2076.0,55.7693]
[1617781043124,68.6106,2076.2,2076.0,55.7693]
[1617781043325,71.51755,2076.2,2076.1,2.90695]
[1617781043523,71.51755,2076.2,2076.1,8.90695]
[1617781044724,5.44855,2076.2,2076.1,8.90695]
[1617781044924,2.90695,2076.2,2076.1,8.90695]
[1617781045125,0.02838005,2076.9,2076.1,8.90695]
[1617781045325,0.02837842,2077.1,2076.7,2.90695]
[1617781045725,0.02837842,2077.1,2076.8,6.06]
[1617781046526,0.02837968,2077.2,2076.8,6.06]
[1617781047126,0.02837968,2077.2,2076.7,6.01]
[1617781047326,2.90695,2076.8,2076.7,6.01]
[1617781047530,2.90695,2076.8,2076.6,2.90695]
[1617781047726,2.90695,2076.8,2076.7,5.88]
[1617781049126,2.90695,2076.8,2076.2,5.83]
[1617781049327,3.0018,2076.8,2076.7,5.96]
[1617781049726,3.0018,2076.8,2076.6,2.90695]
[1617781050126,3.0018,2076.8,2076.7,5.95]
[1617781051327,5.90875,2076.8,2076.7,5.95]
[1617781052228,5.90875,2076.8,2076.5,5.83]
[1617781052631,5.90875,2076.8,2076.7,5.83]
[1617781052829,5.90875,2076.8,2076.5,5.86]
[1617781053029,79.976,2076.7,2076.5,5.86]
[1617781053229,79.976,2076.7,2076.1,5.9]
[1617781053429,79.976,2076.7,2076.6,6.04]
[1617781053836,79.976,2076.7,2076.5,6.04]
[1617781054032,2.0,2076.7,2076.5,6.04]
[1617781054731,2.02834791,2076.7,2076.5,6.04]
[1617781055331,2.90695,2076.6,2076.5,6.04]
[1617781055530,2.90695,2076.6,2076.0,2.90695]
[1617781056330,68.6849,2076.3,2076.1,5.79]
[1617781056530,71.4553,2076.3,2076.1,5.79]
[1617781057331,2.90695,2076.2,2076.1,5.79]
[1617781057732,2.90695,2076.2,2076.0,2.90695]
[1617781058331,2.90695,2076.2,2076.1,6.06]
[1617781058532,2.90695,2076.2,2076.0,2.90695]
[1617781058933,2.90695,2076.2,2076.1,5.97]
[1617781061134,2.90695,2076.2,2076.0,2.90695]
[1617781062536,2.90695,2076.2,2075.2,79.6422]
[1617781062737,2.90695,2076.2,2075.0,13.3468]
[1617781063337,2.90695,2076.2,2075.1,5.79]
[1617781063536,30.0,2076.2,2075.3,2.90695]
[1617781063736,30.0,2076.2,2074.4,12.6865]
[1617781063737,30.0,2076.2,2074.6,5.79]
[1617781063940,2.0,2076.1,2074.5,5.96]
[1617781064138,60.1934,2074.5,2073.1,74.41]
[1617781064337,62.8472,2074.5,2073.1,74.41]
[1617781064536,2.6538,2074.5,2073.2,48.8476]
[1617781064736,2.6538,2074.5,2073.3,2.0]
[1617781064936,2.6538,2074.5,2073.2,48.8476]
[1617781064937,2.6538,2074.5,2073.5,2.0]
[1617781065138,2.6538,2074.5,2073.5,38.05]
[1617781065338,2.6538,2074.5,2073.5,36.05]
[1617781065537,2.6538,2074.5,2074.1,2.90695]
[1617781065738,2.6538,2074.5,2074.2,5.66]
[1617781067340,2.6538,2074.5,2074.1,2.90695]
[1617781067539,2.90695,2074.2,2074.1,2.90695]
[1617781067739,72.3581,2074.1,2073.3,13.1323]
[1617781068139,72.3581,2074.1,2073.4,5.9]
[1617781068338,72.3581,2074.1,2073.5,2.0]
[1617781068741,72.3581,2074.1,2073.6,5.92]
[1617781068941,72.3581,2074.1,2073.7,2.0]
[1617781069441,72.3581,2074.1,2074.0,2.90695]
[1617781070041,2.6538,2074.5,2074.0,8.71695]
[1617781070242,75.8992,2074.2,2074.0,8.71695]
[1617781070442,1.8839,2074.6,2074.0,8.71695]
[1617781070641,75.87,2074.6,2074.0,8.71695]
[1617781071442,2.90695,2074.3,2074.1,2.0]
[1617781071845,77.1281,2075.8,2074.3,68.8302]
[1617781072046,77.1281,2075.8,2074.3,71.0144]
[1617781072244,77.1281,2075.8,2074.4,5.82]
[1617781072647,0.9736,2076.1,2074.4,35.82]
[1617781072848,58.3237,2076.1,2075.1,64.7283]
[1617781073048,58.3237,2076.1,2075.1,67.7394]
[1617781073249,58.3237,2076.1,2075.2,6.04]
[1617781073452,58.3237,2076.1,2075.2,8.94695]
[1617781075452,58.3237,2076.1,2075.6,2.90695]
[1617781076053,2.0,2076.8,2075.7,5.98]
[1617781076255,2.0,2077.1,2075.7,5.98]
[1617781076453,71.0634,2076.5,2075.8,68.2084]
[1617781076853,71.0634,2076.5,2075.9,5.91]
[1617781077455,2.90695,2076.0,2075.9,5.91]
[1617781077658,60.16235,2076.0,2075.9,5.91]
[1617781077855,60.16235,2076.0,2075.7,5.88]
[1617781078254,60.16235,2076.0,2075.9,5.95]
[1617781078454,60.16235,2076.0,2075.6,2.90695]
[1617781078455,60.16235,2076.0,2075.7,5.97]
[1617781078654,60.16235,2076.0,2075.9,5.81]
[1617781079054,60.16235,2076.0,2075.7,5.89]
[1617781079656,60.16235,2076.0,2075.9,2.90695]
[1617781080055,60.16235,2076.0,2075.9,8.76695]
[1617781081058,2.90695,2076.0,2075.9,8.76695]
[1617781081258,75.743,2077.1,2075.9,8.76695]
[1617781081659,75.743,2077.1,2076.5,2.90695]
[1617781081859,0.9551,2077.3,2076.6,5.86]
[1617781082659,0.9551,2077.3,2075.5,2.9496]
[1617781082860,0.9551,2077.3,2075.5,32.9496]
[1617781083059,0.9551,2077.3,2076.6,5.94]
[1617781083259,0.02812752,2077.8,2076.6,5.94]
[1617781083460,0.02812752,2077.8,2076.2,5.87]
[1617781083661,0.05625504,2077.9,2076.2,5.87]
[1617781083662,0.02812675,2077.9,2076.7,5.82]
[1617781084060,0.02812675,2077.9,2076.6,5.83]
[1617781084260,0.02812675,2077.9,2076.8,5.96]
[1617781084660,0.02812675,2077.9,2076.6,5.99]
[1617781084863,67.5876,2076.8,2076.6,5.99]
[1617781085261,67.5876,2076.8,2075.7,6.05]
[1617781085662,68.5614,2076.8,2075.7,6.05]
[1617781085863,71.6696,2076.8,2075.7,6.05]
[1617781086262,4.082,2076.8,2075.6,6.06]
[1617781086463,4.082,2076.8,2075.8,5.95]
[1617781086862,4.082,2076.8,2075.7,5.67]
[1617781087062,4.082,2076.8,2075.1,32.0]
[1617781087262,4.082,2076.8,2075.9,5.86]
[1617781087466,4.082,2076.8,2075.8,5.83]
[1617781087665,2.90695,2075.9,2075.5,2.90695]
[1617781088063,2.90695,2075.9,2075.6,3.4]
[1617781089666,2.90695,2075.9,2075.8,2.90695]
[1617781089871,0.02812257,2077.6,2075.8,32.90695]
[1617781090067,0.02812257,2077.6,2075.8,40.94695]
[1617781090269,0.02811736,2077.9,2075.8,40.94695]
[1617781090666,111.27073473,2078.1,2075.8,40.94695]
[1617781090667,111.24261488,2078.1,2075.8,40.94695]
[1617781091267,0.02811488,2078.1,2075.8,40.94695]
[1617781091469,30.0,2078.1,2075.8,40.94695]
[1617781091667,62.9383,2076.8,2076.5,2.90695]
[1617781092067,62.9383,2076.8,2076.6,6.06]
[1617781092768,62.9383,2076.8,2075.9,6.04]
[1617781093169,62.9383,2076.8,2075.7,5.92]
[1617781093368,62.9383,2076.8,2075.6,13.0504]
[1617781093569,4.5226,2077.1,2075.7,5.97]
[1617781093768,2.5226,2077.1,2075.7,5.97]
[1617781094169,2.5226,2077.1,2075.6,5.78]
[1617781094571,2.5226,2077.1,2075.8,5.85]
[1617781094769,2.5226,2077.1,2075.7,5.82]
[1617781095176,2.5226,2077.1,2075.4,2.90695]
[1617781095177,64.0414,2076.2,2075.4,2.90695]
[1617781095369,66.4463,2076.2,2075.4,2.90695]
[1617781095569,66.4463,2076.2,2075.5,5.85]
[1617781096569,64.0414,2076.2,2075.5,5.85]
[1617781097970,64.0414,2076.2,2075.5,37.85]
[1617781099671,64.0414,2076.2,2076.1,4.90695]
[1617781099874,2.90695,2076.4,2076.1,37.50705]
[1617781100072,2.90695,2076.4,2076.1,109.94365]
[1617781101075,2.90695,2076.4,2076.1,111.94365]
[1617781101276,67.7984,2076.7,2076.1,111.94365]
[1617781101674,67.7984,2076.7,2076.6,2.90695]
[1617781101875,2.90695,2076.9,2076.6,5.88105]
[1617781102074,2.90695,2076.9,2076.7,65.9948]
[1617781102476,2.90695,2076.9,2076.8,5.98]
[1617781102877,64.6085,2077.4,2076.8,5.98]
[1617781102878,2.571,2077.4,2076.8,5.98]
[1617781103080,2.571,2077.4,2076.9,77.1428]
[1617781103476,2.571,2077.4,2077.0,5.87]
[1617781103675,2.90695,2077.5,2077.3,2.90695]
[1617781103875,2.90695,2077.5,2077.3,5.66275]
[1617781104076,2.90695,2077.5,2077.4,6.02]
[1617781106079,2.90695,2077.5,2077.4,36.02]
[1617781107080,2.571,2078.3,2077.4,38.02]
[1617781107280,2.571,2078.3,2078.1,66.4973]
[1617781107481,2.571,2078.3,2078.1,69.4426]
[1617781107680,5.47795,2078.3,2078.2,8.79695]
[1617781109079,5.47795,2078.3,2078.2,5.89]
[1617781109481,5.47795,2078.3,2077.8,6.05]
[1617781109680,2.90695,2077.9,2077.8,6.05]
[1617781109880,2.90695,2077.9,2077.7,77.65625]
[1617781110280,2.90695,2077.9,2077.8,5.87]
[1617781113682,61.71395,2077.9,2077.4,80.36]
[1617781114084,61.71395,2077.9,2077.8,5.81]
[1617781114285,61.71395,2077.9,2077.5,6.06]
[1617781114685,61.71395,2077.9,2077.8,6.03]
[1617781114887,61.71395,2077.9,2077.5,5.98]
[1617781115285,61.71395,2077.9,2077.8,5.92]
[1617781115592,61.71395,2077.9,2077.5,6.04]
[1617781115787,2.90695,2077.6,2077.5,6.04]
[1617781116685,5.95515,2077.6,2077.5,6.04]
[1617781117287,5.95515,2077.6,2077.3,5.92]
[1617781117687,5.95515,2077.6,2076.2,26.302]
[1617781117885,5.95515,2077.6,2076.3,2.90695]
[1617781118585,5.95515,2077.6,2076.4,6.0]
[1617781119189,0.02824483,2077.5,2076.4,6.0]
[1617781119586,0.02827294,2077.3,2076.4,6.0]
[1617781119787,2.90695,2076.5,2076.4,6.0]
[1617781119985,5.32415,2076.5,2076.4,6.0]
[1617781122490,2.90695,2076.5,2076.4,6.0]
[1617781122890,2.571,2077.1,2076.4,36.0]
[1617781123090,2.571,2077.1,2076.5,68.7269]
[1617781123289,2.571,2077.1,2076.6,30.0]
[1617781123492,2.571,2077.1,2076.6,36.03]
[1617781123890,2.571,2077.1,2077.0,2.90695]
[1617781124089,2.571,2077.1,2077.0,5.76375]
[1617781124290,2.571,2077.1,2077.0,11.71375]
[1617781125090,2.571,2077.1,2077.0,5.95]
[1617781125493,55.4964,2077.0,2076.3,74.2374]
[1617781125891,55.4964,2077.0,2076.9,2.90695]
[1617781126092,5.3385,2077.1,2076.9,2.90695]
[1617781126291,5.3385,2077.1,2076.9,8.90695]
[1617781126894,2.571,2077.1,2076.9,10.89475]
[1617781127998,2.90695,2077.0,2076.9,8.90695]
[1617781128405,2.90695,2077.0,2076.9,6.0]
[1617781128605,5.90865,2077.0,2076.9,6.0]
[1617781129001,5.90865,2077.0,2075.8,30.0]
[1617781129002,70.4805,2076.9,2076.4,61.3692]
[1617781129399,70.4805,2076.9,2076.5,0.34]
[1617781129998,2.90695,2076.6,2076.5,3.24695]
[1617781132099,70.4805,2076.9,2076.5,3.24695]
[1617781132299,2.571,2077.1,2076.5,35.22335]
[1617781132503,2.571,2077.1,2077.0,72.9562]
[1617781132700,2.571,2077.1,2077.0,75.163]
[1617781132902,2.571,2077.1,2077.0,81.123]
[1617781134001,5.47795,2077.1,2077.0,84.02995]
[1617781136205,5.47795,2077.1,2077.0,11.07375]
[1617781136404,5.47795,2077.1,2077.0,8.86695]
[1617781138208,7.46935,2077.1,2077.0,8.86695]
[1617781139707,5.47795,2077.1,2077.0,8.86695]
[1617781145120,5.47795,2077.1,2077.0,5.96]
[1617781146121,5.47795,2077.1,2077.0,2.6681]
[1617781146321,5.47795,2077.1,2077.0,8.7081]
[1617781146521,2.571,2077.1,2077.0,38.7081]
[1617781147122,2.571,2077.1,2077.0,40.7081]
[1617781147523,0.02830063,2077.7,2077.0,40.7081]
[1617781148120,0.02830063,2077.7,2077.6,2.90695]
[1617781148321,80.5577,2078.0,2077.6,36.91845]
[1617781148322,80.58599646,2078.0,2077.6,36.91845]
[1617781148520,80.58599646,2078.0,2077.7,5.83]
[1617781148720,80.58599646,2078.0,2077.8,2.0]
[1617781148920,80.5577,2078.0,2077.8,32.0]
[1617781149120,80.5577,2078.0,2077.9,5.78]
[1617781149322,80.5577,2078.0,2077.9,37.78]
[1617781149923,0.02829503,2078.1,2077.9,37.78]
[1617781150123,0.02829396,2078.2,2078.1,79.2812]
[1617781150323,0.02829396,2078.2,2078.1,81.5372]
[1617781150523,0.02829396,2078.2,2078.1,87.5572]
[1617781151727,5.47795,2078.3,2078.1,87.5572]
[1617781151925,2.90695,2078.3,2078.1,87.5572]
[1617781152126,0.05658286,2078.2,2078.1,87.5572]
[1617781152526,2.96353243,2078.3,2078.1,87.5572]
[1617781152726,0.02829153,2078.2,2078.1,87.5572]
[1617781153226,0.02829153,2078.2,2078.1,8.276]
[1617781153427,0.02829153,2078.2,2078.1,6.02]
[1617781153826,0.05659097,2078.2,2078.1,6.02]
[1617781155330,0.02829532,2078.2,2078.1,6.02]
[1617781156530,5.85844405,2078.3,2078.1,6.02]
[1617781156729,5.85844405,2078.3,2078.2,60.3359]
[1617781157137,5.83015,2078.3,2078.2,66.35731714]
[1617781160734,2.90695,2078.3,2078.2,66.35731714]
[1617781161938,2.96348085,2078.3,2078.2,66.35731714]
[1617781162137,5.10478085,2078.3,2078.2,66.35731714]
[1617781163538,2.96348085,2078.3,2078.2,66.35731714]
[1617781163739,2.93521411,2078.3,2078.2,66.35731714]
[1617781163939,2.90695,2078.3,2078.2,66.35731714]
[1617781165544,2.96356111,2078.3,2078.2,66.35731714]
[1617781168247,2.9352439,2078.3,2078.2,66.35731714]
[1617781168447,2.9352439,2078.3,2078.2,6.04]